fUSD/lending_fUSD_20240730
["ID","MTS","AMOUNT","RATE_DAILY","PERIOD"]
[333658339,1722318633172,-6654.8,0.000105,2]
[333658340,1722318633188,-9743.5273487,0.000105,2]
[333658341,1722318633200,-2757.28875659,0.000105,2]
[333658342,1722318633214,-32040.39120578,0.000105,2]
[333658343,1722318633231,-422.57359696,0.000105,2]
[333658344,1722318633243,-1001.55012815,0.000105,2]
[333658345,1722318633259,-1007.07587274,0.000105,2]
[333658346,1722318633275,-2977.63233919,0.000105,2]
[333658347,1722318633288,-1017.04312744,0.000105,2]
[333658348,1722318633300,-791.24822385,0.000105,2]
[333658349,1722318638212,-300.32,0.000105,2]
[333658350,1722318638223,-65304.29827569,0.000105,2]
[333658351,1722318638235,-1289.48153903,0.000105,2]
[333658352,1722318638246,-424.88308538,0.000105,2]
[333658353,1722318638258,-1999.05404821,0.000105,2]
[333658354,1722318638497,-729.17517403,0.000105,2]
[333658355,1722318638509,-475.82133345,0.000105,2]
[333658356,1722318638520,-320.03674283,0.000105,2]
[333658357,1722318638531,-775.44461026,0.000105,2]
[333658358,1722318638547,-586.27968751,0.000105,2]
[333658359,1722318638561,-810.16228092,0.000105,2]
[333658360,1722318638572,-479.23585153,0.000105,2]
[333658361,1722318638584,-500.0,0.000105,2]
[333658362,1722318638596,-6874.19597628,0.000105,2]
[333658363,1722318638608,-7247.88125866,0.000105,2]
[333658364,1722318638620,-7173.35954135,0.000105,2]
[333658365,1722318638631,-9901.01985224,0.000105,2]
[333658366,1722318638643,-5085.22599903,0.000105,2]
[333658367,1722318638654,-5726.34454775,0.000105,2]
[333658368,1722318638666,-1856.5631075,0.000105,2]
[333658369,1722318638677,-1151.7587563,0.000105,2]
[333658370,1722318638688,-600.11302241,0.000105,2]
[333658371,1722318638701,-1153.0,0.000105,2]
[333658372,1722318638713,-4800.900707,0.000105,2]
[333658373,1722318638725,-1803.52865084,0.000105,2]
[333658374,1722318638736,-1949.91783652,0.000105,2]
[333658375,1722318638748,-874.9,0.000105,2]
[333658376,1722318638763,-3450.49798637,0.000105,2]
[333658377,1722318638775,-15859.54,0.000105,2]
[333658379,1722318638787,-48712.65287047,0.000105,2]
[333658381,1722318638800,-673.40945464,0.000105,2]
[333658383,1722318638812,-2879.43368562,0.000105,2]
[333658385,1722318638826,-2253.52196766,0.000105,2]
[333658388,1722318638843,-11377.15493044,0.000105,2]
[333658390,1722318638856,-3163.29177813,0.000105,2]
[333658392,1722318638867,-941.45170975,0.000105,2]
[333658395,1722318638879,-1391.18950319,0.000105,2]
[333658397,1722318638891,-2212.331545,0.000105,2]
[333658399,1722318638903,-46154.2067756,0.000105,2]
[333658401,1722318638915,-1141.40064448,0.000105,2]
[333658404,1722318638927,-519.980028,0.000105,2]
[333658406,1722318638938,-1656.96940033,0.000105,2]
[333658408,1722318638950,-2109.73310926,0.000105,2]
[333658410,1722318638962,-6810.39788908,0.000105,2]
[333658428,1722318640475,-354.16960267,0.000105,2]
[333658429,1722318640486,-250.13277065,0.000105,2]
[333658430,1722318640497,-332630.0,0.000105,2]
[333658431,1722318640508,-7104.61058235,0.000105,2]
[333658432,1722318640520,-586.58493807,0.000105,2]
[333658433,1722318640589,-863906.94859817,0.000105,2]
[333658434,1722318640599,-229.41659863,0.000105,2]
[333658435,1722318640608,-152.62866268,0.000105,3]
[333658436,1722318640618,-200.0,0.000105,2]
[333658437,1722318640627,-379.71152808,0.00010692,2]
[333658438,1722318640637,-419.88204947,0.00010755,2]
[333658439,1722318640646,-254.978613,0.0001079,2]
[333658440,1722318640656,-3354.4,0.00010792,2]
[333658441,1722318640665,-1896.367,0.000108,2]
[333658442,1722318640675,-1668.651,0.000108,2]
[333658443,1722318640684,-362.0,0.000108,2]
[333658444,1722318640693,-213.488,0.000108,2]
[333658445,1722318640703,-815.158,0.000108,2]
[333658446,1722318640715,-1327.928,0.000108,2]
[333658447,1722318640724,-519.644,0.000108,2]
[333658448,1722318640733,-1734.248,0.000108,2]
[333658449,1722318640743,-5121.0,0.000108,2]
[333658450,1722318640753,-1686.197,0.000108,2]
[333658451,1722318640764,-5890.79,0.000108,2]
[333658452,1722318640774,-33540.682,0.000108,2]
[333658453,1722318640783,-6900.0,0.000108,2]
[333658454,1722318640795,-194.00027483,0.00010847,2]
[333658455,1722318640804,-194.00027483,0.00010854,2]
[333658456,1722318640814,-358.81180703,0.00010856,2]
[333658457,1722318640824,-1000.0,0.00010858,2]
[333658458,1722318640835,-10000.0,0.00010858,2]
[333658459,1722318640846,-358.81180703,0.00010859,2]
[333658460,1722318640855,-358.81180703,0.00010885,2]
[333658461,1722318640865,-194.00027483,0.00010889,2]
[333658462,1722318640875,-154.32935,0.00010899,2]
[333658463,1722318640885,-151.0,0.00010899,2]
[333658464,1722318640895,-154.661653,0.00010899,2]
[333658465,1722318640904,-151.0,0.00010899,2]
[333658466,1722318640914,-261.333736,0.00010899,2]
[333658467,1722318640923,-2000.0,0.000109,2]
[333658468,1722318640933,-154.16,0.000109,2]
[333658469,1722318640943,-154.16,0.000109,2]
[333658470,1722318640953,-154.16,0.000109,2]
[333658471,1722318640963,-154.16,0.000109,2]
[333658472,1722318640973,-154.16,0.000109,2]
[333658473,1722318640982,-154.16,0.000109,2]
[333658474,1722318640991,-254.978613,0.00010925,2]
[333658475,1722318641002,-1030.58522623,0.0001093,2]
[333658476,1722318641011,-5804.978439,0.00010948,2]
[333658477,1722318641021,-154.16,0.00010948,2]
[333658478,1722318641031,-383.67194714,0.0001095,2]
[333658479,1722318641040,-511.57505004,0.00010958,2]
[333658480,1722318641050,-516.01336242,0.00010958,2]
[333658481,1722318641059,-548.64014968,0.00010958,2]
[333658482,1722318641068,-500.0,0.00010958,2]
[333658483,1722318641078,-500.0,0.00010958,2]
[333658484,1722318641087,-500.0,0.00010958,2]
[333658485,1722318641097,-500.0,0.00010958,2]
[333658486,1722318641107,-500.0,0.00010958,2]
[333658487,1722318641117,-500.0,0.00010958,2]
[333658488,1722318641126,-500.0,0.00010958,2]
[333658489,1722318641136,-500.0,0.00010958,2]
[333658490,1722318641146,-500.0,0.00010958,2]
[333658491,1722318641156,-500.0,0.00010958,2]
[333658492,1722318641165,-613.85102241,0.00010958,2]
[333658493,1722318641175,-588.38165076,0.00010958,2]
[333658494,1722318641185,-560.86905565,0.00010958,2]
[333658495,1722318641195,-500.0,0.00010958,2]
[333658496,1722318641204,-502.12,0.00010958,2]
[333658497,1722318641215,-500.0,0.00010958,2]
[333658498,1722318641225,-588.60100819,0.00010958,2]
[333658499,1722318641234,-500.0,0.00010958,2]
[333658500,1722318641244,-500.0,0.00010958,2]
[333658501,1722318641253,-500.0,0.00010958,2]
[333658502,1722318641263,-500.0,0.00010958,2]
[333658503,1722318641272,-500.0,0.00010958,2]
[333658504,1722318641282,-500.0,0.00010958,2]
[333658505,1722318641291,-512.34284326,0.00010958,2]
[333658506,1722318641301,-500.0,0.00010958,2]
[333658507,1722318641311,-500.0,0.00010958,2]
[333658508,1722318641321,-500.0,0.00010958,2]
[333658509,1722318641331,-500.0,0.00010958,2]
[333658510,1722318641342,-500.0,0.00010958,2]
[333658511,1722318641351,-500.0,0.00010958,2]
[333658512,1722318641361,-500.0,0.00010958,2]
[333658513,1722318641371,-500.0,0.00010958,2]
[333658514,1722318641381,-512.13967898,0.00010958,2]
[333658515,1722318641391,-198.50418785,0.00010958,2]
[333658516,1722318641401,-544.76378409,0.00010958,2]
[333658517,1722318641411,-500.0,0.00010958,2]
[333658518,1722318641421,-500.0,0.00010958,2]
[333658519,1722318641431,-634.47982496,0.00010958,2]
[333658520,1722318641441,-500.0,0.00010958,2]
[333658521,1722318641451,-500.0,0.00010958,2]
[333658522,1722318641460,-500.0,0.00010958,2]
[333658523,1722318641469,-500.0,0.00010958,2]
[333658524,1722318641479,-500.0,0.00010958,2]
[333658525,1722318641490,-500.0,0.00010958,2]
[333658526,1722318641501,-155.13448006,0.00010958,2]
[333658527,1722318641511,-310.56065743,0.00010958,2]
[333658528,1722318641520,-500.0,0.00010958,2]
[333658529,1722318641529,-500.0,0.00010958,2]
[333658530,1722318641538,-500.0,0.00010958,2]
[333658531,1722318641547,-500.0,0.00010958,2]
[333658532,1722318641557,-597.57771112,0.00010958,2]
[333658533,1722318641566,-500.0,0.00010958,2]
[333658534,1722318641576,-500.0,0.00010958,2]
[333658535,1722318641586,-500.0,0.00010958,2]
[333658536,1722318641596,-500.0,0.00010958,2]
[333658537,1722318641606,-169.55534302,0.00010958,2]
[333658538,1722318641616,-500.0,0.00010958,2]
[333658539,1722318641626,-194.50597691,0.00010958,2]
[333658540,1722318641635,-500.0,0.00010958,2]
[333658541,1722318641645,-500.0,0.00010958,2]
[333658542,1722318641654,-250.0,0.00010958,2]
[333658543,1722318641663,-586.31910142,0.00010958,2]
[333658544,1722318641673,-524.15709767,0.00010958,2]
[333658545,1722318641682,-454.53203326,0.00010958,2]
[333658546,1722318641692,-548.49607999,0.00010958,2]
[333658547,1722318641703,-500.0,0.00010958,2]
[333658548,1722318641713,-500.0,0.00010958,2]
[333658549,1722318641722,-500.0,0.00010958,2]
[333658550,1722318641732,-203.85199156,0.00010958,2]
[333658551,1722318641742,-500.0,0.00010958,2]
[333658552,1722318641754,-500.0,0.00010958,2]
[333658553,1722318641765,-500.0,0.00010958,2]
[333658554,1722318641774,-500.0,0.00010958,2]
[333658555,1722318641785,-543.87625646,0.00010958,2]
[333658556,1722318641794,-214.78248441,0.00010958,2]
[333658557,1722318641806,-500.0,0.00010958,2]
[333658558,1722318641815,-500.0,0.00010958,2]
[333658559,1722318641825,-500.0,0.00010958,2]
[333658560,1722318641836,-591.36,0.00010958,2]
[333658561,1722318641846,-500.0,0.00010958,2]
[333658562,1722318641855,-500.9,0.00010958,2]
[333658563,1722318641865,-500.0,0.00010958,2]
[333658564,1722318641874,-500.0,0.00010958,2]
[333658565,1722318641884,-500.0,0.00010958,2]
[333658566,1722318641893,-539.28339099,0.00010958,2]
[333658567,1722318641903,-289.26798501,0.00010958,2]
[333658568,1722318641912,-500.0,0.00010958,2]
[333658569,1722318641922,-500.0,0.00010958,2]
[333658570,1722318641931,-500.0,0.00010958,2]
[333658571,1722318641940,-330.33812791,0.00010958,2]
[333658572,1722318641949,-500.0,0.00010958,2]
[333658573,1722318641959,-500.0,0.00010958,2]
[333658574,1722318641969,-500.0,0.00010958,2]
[333658575,1722318641978,-500.0,0.00010958,2]
[333658576,1722318641988,-500.0,0.00010958,2]
[333658577,1722318641998,-500.0,0.00010958,2]
[333658578,1722318642007,-500.0,0.00010958,2]
[333658579,1722318642017,-354.75754096,0.00010958,2]
[333658580,1722318642027,-626.32,0.00010958,2]
[333658581,1722318642036,-626.32,0.00010958,2]
[333658582,1722318642046,-626.32,0.00010958,2]
[333658583,1722318642055,-626.32,0.00010958,2]
[333658584,1722318642065,-626.32,0.00010958,2]
[333658585,1722318642075,-626.32,0.00010958,2]
[333658586,1722318642084,-626.32,0.00010958,2]
[333658587,1722318642094,-626.32,0.00010958,2]
[333658588,1722318642104,-626.32,0.00010958,2]
[333658589,1722318642114,-626.32,0.00010958,2]
[333658590,1722318642123,-626.32,0.00010958,2]
[333658591,1722318642133,-626.32,0.00010958,2]
[333658592,1722318642142,-626.32,0.00010958,2]
[333658593,1722318642152,-626.32,0.00010958,2]
[333658594,1722318642161,-626.32,0.00010958,2]
[333658595,1722318642171,-500.0,0.00010958,2]
[333658596,1722318642181,-612.54554629,0.00010958,2]
[333658597,1722318642190,-626.32,0.00010958,2]
[333658598,1722318642200,-626.32,0.00010958,2]
[333658599,1722318642211,-626.32,0.00010958,2]
[333658600,1722318642221,-626.32,0.00010958,2]
[333658601,1722318642231,-500.0,0.00010958,2]
[333658602,1722318642241,-500.0,0.00010958,2]
[333658603,1722318642251,-626.32,0.00010958,2]
[333658604,1722318642260,-500.0,0.00010958,2]
[333658605,1722318642270,-626.32,0.00010958,2]
[333658606,1722318642280,-626.32,0.00010958,2]
[333658607,1722318642290,-626.32,0.00010958,2]
[333658608,1722318642299,-626.4,0.00010958,2]
[333658609,1722318642310,-500.0,0.00010958,2]
[333658610,1722318642319,-500.0,0.00010958,2]
[333658611,1722318642329,-500.0,0.00010958,2]
[333658612,1722318642338,-500.0,0.00010958,2]
[333658613,1722318642348,-440.0,0.00010958,2]
[333658614,1722318642357,-500.0,0.00010958,2]
[333658615,1722318642366,-500.0,0.00010958,2]
[333658616,1722318642376,-500.0,0.00010958,2]
[333658617,1722318642385,-556.16228654,0.00010958,2]
[333658618,1722318642395,-500.0,0.00010958,2]
[333658619,1722318642405,-500.0,0.00010958,2]
[333658620,1722318642414,-500.0,0.00010958,2]
[333658621,1722318642424,-500.0,0.00010958,2]
[333658622,1722318642434,-500.0,0.00010958,2]
[333658623,1722318642443,-500.0,0.00010958,2]
[333658624,1722318642453,-500.0,0.00010958,2]
[333658625,1722318642463,-500.0,0.00010958,2]
[333658626,1722318642472,-342.21689361,0.00010958,2]
[333658627,1722318642482,-500.0,0.00010958,2]
[333658628,1722318642492,-642.61659487,0.00010958,2]
[333658629,1722318642502,-500.0,0.00010958,2]
[333658630,1722318642511,-500.0,0.00010958,2]
[333658631,1722318642520,-500.0,0.00010958,2]
[333658632,1722318642530,-500.0,0.00010958,2]
[333658633,1722318642541,-500.0,0.00010958,2]
[333658634,1722318642550,-500.0,0.00010958,2]
[333658635,1722318642560,-500.0,0.00010958,2]
[333658636,1722318642569,-500.0,0.00010958,2]
[333658637,1722318642579,-563.53826633,0.00010958,2]
[333658638,1722318642588,-500.0,0.00010958,2]
[333658639,1722318642598,-500.0,0.00010958,2]
[333658640,1722318642607,-500.0,0.00010958,2]
[333658641,1722318642616,-500.0,0.00010958,2]
[333658642,1722318642625,-826.47,0.00010958,2]
[333658643,1722318642635,-500.0,0.00010958,2]
[333658644,1722318642644,-826.47,0.00010958,2]
[333658645,1722318642654,-500.0,0.00010958,2]
[333658646,1722318642663,-826.47,0.00010958,2]
[333658647,1722318642673,-500.0,0.00010958,2]
[333658648,1722318642682,-826.47,0.00010958,2]
[333658649,1722318642691,-826.47,0.00010958,2]
[333658650,1722318642701,-500.0,0.00010958,2]
[333658651,1722318642710,-826.47,0.00010958,2]
[333658652,1722318642719,-500.0,0.00010958,2]
[333658653,1722318642729,-500.0,0.00010958,2]
[333658654,1722318642739,-826.47,0.00010958,2]
[333658655,1722318642748,-500.0,0.00010958,2]
[333658656,1722318642760,-826.47,0.00010958,2]
[333658657,1722318642770,-500.0,0.00010958,2]
[333658658,1722318642779,-826.47,0.00010958,2]
[333658659,1722318642788,-500.0,0.00010958,2]
[333658660,1722318642799,-826.47,0.00010958,2]
[333658661,1722318642808,-826.47,0.00010958,2]
[333658662,1722318642817,-826.47,0.00010958,2]
[333658663,1722318642828,-826.47,0.00010958,2]
[333658664,1722318642839,-500.0,0.00010958,2]
[333658665,1722318642848,-826.47,0.00010958,2]
[333658666,1722318642858,-500.0,0.00010958,2]
[333658667,1722318642867,-500.0,0.00010958,2]
[333658668,1722318642877,-826.47,0.00010958,2]
[333658669,1722318642887,-500.0,0.00010958,2]
[333658670,1722318642897,-826.47,0.00010958,2]
[333658671,1722318642906,-276.6759409,0.00010958,2]
[333658672,1722318642916,-826.47,0.00010958,2]
[333658673,1722318642925,-826.47,0.00010958,2]
[333658674,1722318642935,-826.47,0.00010958,2]
[333658675,1722318642944,-826.47,0.00010958,2]
[333658676,1722318642954,-826.47,0.00010958,2]
[333658677,1722318642964,-826.47,0.00010958,2]
[333658678,1722318642975,-826.47,0.00010958,2]
[333658679,1722318642984,-826.52,0.00010958,2]
[333658680,1722318642993,-500.0,0.00010958,2]
[333658681,1722318643003,-500.0,0.00010958,2]
[333658682,1722318643013,-539.48411604,0.00010958,2]
[333658683,1722318643022,-520.66810203,0.00010958,2]
[333658684,1722318643032,-500.0,0.00010958,2]
[333658685,1722318643042,-500.0,0.00010958,2]
[333658686,1722318643051,-500.0,0.00010958,2]
[333658687,1722318643061,-500.0,0.00010958,2]
[333658688,1722318643070,-500.0,0.00010958,2]
[333658689,1722318643080,-299.17288483,0.00010958,2]
[333658690,1722318643089,-412.69414389,0.00010958,2]
[333658691,1722318643099,-522.84,0.00010958,2]
[333658692,1722318643108,-500.0,0.00010958,2]
[333658694,1722318643118,-500.0,0.00010958,2]
[333658695,1722318643127,-500.0,0.00010958,2]
[333658697,1722318643137,-500.0,0.00010958,2]
[333658699,1722318643146,-500.0,0.00010958,2]
[333658701,1722318643156,-500.0,0.00010958,2]
[333658703,1722318643166,-500.0,0.00010958,2]
[333658704,1722318643175,-556.70349989,0.00010958,2]
[333658706,1722318643186,-421.52563974,0.00010958,2]
[333658708,1722318643196,-600.19087928,0.00010958,2]
[333658710,1722318643206,-500.0,0.00010958,2]
[333658711,1722318643216,-500.0,0.00010958,2]
[333658713,1722318643225,-500.0,0.00010958,2]
[333658714,1722318643234,-500.0,0.00010958,2]
[333658716,1722318643243,-500.0,0.00010958,2]
[333658718,1722318643254,-500.0,0.00010958,2]
[333658720,1722318643263,-500.0,0.00010958,2]
[333658722,1722318643274,-500.0,0.00010958,2]
[333658723,1722318643284,-500.0,0.00010958,2]
[333658725,1722318643294,-500.0,0.00010958,2]
[333658727,1722318643304,-500.0,0.00010958,2]
[333658729,1722318643492,-500.0,0.00010958,2]
[333658730,1722318643503,-500.0,0.00010958,2]
[333658731,1722318643513,-293.96681631,0.00010958,2]
[333658732,1722318643523,-500.0,0.00010958,2]
[333658733,1722318643533,-500.0,0.00010958,2]
[333658734,1722318643543,-500.0,0.00010958,2]
[333658735,1722318643552,-500.0,0.00010958,2]
[333658736,1722318643562,-500.0,0.00010958,2]
[333658737,1722318643572,-500.0,0.00010958,2]
[333658738,1722318643582,-500.0,0.00010958,2]
[333658739,1722318643591,-500.0,0.00010958,2]
[333658740,1722318643600,-500.0,0.00010958,2]
[333658741,1722318643610,-500.0,0.00010958,2]
[333658742,1722318643619,-500.0,0.00010958,2]
[333658743,1722318643629,-448.91972861,0.00010958,2]
[333658744,1722318643638,-500.0,0.00010958,2]
[333658745,1722318643647,-500.0,0.00010958,2]
[333658746,1722318643656,-500.0,0.00010958,2]
[333658747,1722318643666,-500.0,0.00010958,2]
[333658748,1722318643675,-447.11,0.00010958,2]
[333658749,1722318643685,-500.0,0.00010958,2]
[333658750,1722318643695,-500.0,0.00010958,2]
[333658751,1722318643704,-500.0,0.00010958,2]
[333658752,1722318643716,-500.0,0.00010958,2]
[333658753,1722318643725,-579.22570574,0.00010958,2]
[333658754,1722318643734,-500.0,0.00010958,2]
[333658755,1722318643744,-500.0,0.00010958,2]
[333658756,1722318643758,-500.0,0.00010958,2]
[333658757,1722318643768,-500.0,0.00010958,2]
[333658758,1722318643777,-500.0,0.00010958,2]
[333658759,1722318643787,-543.24459026,0.00010958,2]
[333658760,1722318643798,-500.0,0.00010958,2]
[333658761,1722318643807,-500.0,0.00010958,2]
[333658762,1722318643817,-500.0,0.00010958,2]
[333658763,1722318643829,-500.0,0.00010958,2]
[333658764,1722318643838,-500.0,0.00010958,2]
[333658765,1722318643847,-500.0,0.00010958,2]
[333658766,1722318643857,-500.0,0.00010958,2]
[333658767,1722318643866,-500.0,0.00010958,2]
[333658768,1722318643875,-500.0,0.00010958,2]
[333658769,1722318643885,-500.0,0.00010958,2]
[333658770,1722318643894,-500.0,0.00010958,2]
[333658771,1722318643904,-500.0,0.00010958,2]
[333658772,1722318643914,-500.0,0.00010958,2]
[333658773,1722318643924,-500.0,0.00010958,2]
[333658774,1722318643935,-500.0,0.00010958,2]
[333658775,1722318643945,-500.0,0.00010958,2]
[333658776,1722318643955,-500.0,0.00010958,2]
[333658777,1722318643967,-500.0,0.00010958,2]
[333658778,1722318643978,-500.0,0.00010958,2]
[333658779,1722318643988,-500.0,0.00010958,2]
[333658780,1722318643998,-500.0,0.00010958,2]
[333658781,1722318644008,-500.0,0.00010958,2]
[333658782,1722318644018,-500.0,0.00010958,2]
[333658783,1722318644028,-500.0,0.00010958,2]
[333658784,1722318644038,-500.0,0.00010958,2]
[333658785,1722318644047,-500.0,0.00010958,2]
[333658786,1722318644057,-500.0,0.00010958,2]
[333658787,1722318644067,-500.0,0.00010958,2]
[333658788,1722318644076,-527.5785377,0.00010958,2]
[333658789,1722318644086,-500.0,0.00010958,2]
[333658790,1722318644096,-500.0,0.00010958,2]
[333658791,1722318644105,-500.0,0.00010958,2]
[333658792,1722318644114,-500.0,0.00010958,2]
[333658793,1722318644124,-500.0,0.00010958,2]
[333658794,1722318644133,-500.0,0.00010958,2]
[333658795,1722318644143,-500.0,0.00010958,2]
[333658796,1722318644153,-520.58257776,0.00010958,2]
[333658797,1722318644163,-500.0,0.00010958,2]
[333658798,1722318644172,-500.0,0.00010958,2]
[333658799,1722318644182,-500.0,0.00010958,2]
[333658800,1722318644191,-500.0,0.00010958,2]
[333658801,1722318644201,-500.0,0.00010958,2]
[333658802,1722318644211,-500.0,0.00010958,2]
[333658803,1722318644221,-500.0,0.00010958,2]
[333658804,1722318644231,-500.0,0.00010958,2]
[333658805,1722318644240,-500.0,0.00010958,2]
[333658806,1722318644250,-500.0,0.00010958,2]
[333658807,1722318644260,-610.77866252,0.00010958,2]
[333658808,1722318644270,-500.0,0.00010958,2]
[333658809,1722318644279,-500.0,0.00010958,2]
[333658810,1722318644289,-500.0,0.00010958,2]
[333658811,1722318644299,-500.0,0.00010958,2]
[333658812,1722318644308,-500.0,0.00010958,2]
[333658813,1722318644317,-500.0,0.00010958,2]
[333658814,1722318644326,-500.0,0.00010958,2]
[333658815,1722318644336,-605.08691089,0.00010958,2]
[333658816,1722318644346,-500.0,0.00010958,2]
[333658817,1722318644356,-500.0,0.00010958,2]
[333658818,1722318644365,-505.25872565,0.00010958,2]
[333658819,1722318644375,-500.0,0.00010958,2]
[333658820,1722318644385,-500.0,0.00010958,2]
[333658821,1722318644394,-500.0,0.00010958,2]
[333658822,1722318644404,-500.0,0.00010958,2]
[333658823,1722318644413,-410.18,0.00010958,2]
[333658824,1722318644423,-500.0,0.00010958,2]
[333658825,1722318644433,-414.47000001,0.00010958,2]
[333658826,1722318644442,-500.0,0.00010958,2]
[333658827,1722318644452,-500.0,0.00010958,2]
[333658828,1722318644462,-500.0,0.00010958,2]
[333658829,1722318644472,-500.0,0.00010958,2]
[333658830,1722318644482,-500.0,0.00010958,2]
[333658831,1722318644492,-500.0,0.00010958,2]
[333658832,1722318644501,-500.0,0.00010958,2]
[333658833,1722318644511,-500.0,0.00010958,2]
[333658834,1722318644520,-500.0,0.00010958,2]
[333658835,1722318644529,-500.0,0.00010958,2]
[333658836,1722318644539,-500.0,0.00010958,2]
[333658837,1722318644549,-500.0,0.00010958,2]
[333658838,1722318644558,-500.0,0.00010958,2]
[333658839,1722318644568,-500.0,0.00010958,2]
[333658840,1722318644578,-500.0,0.00010958,2]
[333658841,1722318644588,-376.77934645,0.00010958,2]
[333658842,1722318644597,-500.0,0.00010958,2]
[333658843,1722318644608,-500.0,0.00010958,2]
[333658844,1722318644617,-436.4956219,0.00010958,2]
[333658845,1722318644627,-519.41545803,0.00010958,2]
[333658846,1722318644636,-524.36883774,0.00010958,2]
[333658847,1722318644646,-500.0,0.00010958,2]
[333658848,1722318644655,-500.0,0.00010958,2]
[333658849,1722318644664,-500.0,0.00010958,2]
[333658850,1722318644674,-500.0,0.00010958,2]
[333658851,1722318644684,-500.0,0.00010958,2]
[333658852,1722318644693,-500.0,0.00010958,2]
[333658853,1722318644702,-500.0,0.00010958,2]
[333658854,1722318644711,-500.0,0.00010958,2]
[333658855,1722318644721,-500.0,0.00010958,2]
[333658856,1722318644730,-500.0,0.00010958,2]
[333658857,1722318644739,-500.0,0.00010958,2]
[333658858,1722318644749,-500.0,0.00010958,2]
[333658859,1722318644761,-500.0,0.00010958,2]
[333658860,1722318644771,-500.0,0.00010958,2]
[333658861,1722318644780,-500.0,0.00010958,2]
[333658862,1722318644789,-500.0,0.00010958,2]
[333658863,1722318644798,-500.0,0.00010958,2]
[333658864,1722318644807,-500.0,0.00010958,2]
[333658865,1722318644816,-500.0,0.00010958,2]
[333658866,1722318644825,-635.16,0.00010958,2]
[333658867,1722318644834,-500.0,0.00010958,2]
[333658868,1722318644843,-232.5,0.00010958,2]
[333658869,1722318644852,-500.0,0.00010958,2]
[333658870,1722318644862,-500.0,0.00010958,2]
[333658871,1722318644871,-500.0,0.00010958,2]
[333658872,1722318644881,-500.0,0.00010958,2]
[333658873,1722318644890,-500.0,0.00010958,2]
[333658874,1722318644899,-500.0,0.00010958,2]
[333658875,1722318644908,-500.0,0.00010958,2]
[333658876,1722318644917,-500.0,0.00010958,2]
[333658877,1722318644926,-500.0,0.00010958,2]
[333658878,1722318644936,-500.0,0.00010958,2]
[333658879,1722318644945,-500.0,0.00010958,2]
[333658880,1722318644955,-500.0,0.00010958,2]
[333658881,1722318644964,-500.0,0.00010958,2]
[333658882,1722318644973,-500.0,0.00010958,2]
[333658883,1722318644982,-500.0,0.00010958,2]
[333658884,1722318644992,-500.0,0.00010958,2]
[333658885,1722318645003,-500.0,0.00010958,2]
[333658886,1722318645012,-223.98202067,0.00010958,2]
[333658887,1722318645021,-500.0,0.00010958,2]
[333658888,1722318645030,-500.0,0.00010958,2]
[333658889,1722318645040,-500.0,0.00010958,2]